[Event "Titled Tuesday Blitz January 10 Early 2023"]
[White "Perez Rodriguez, Luis Manuel"]
[Black "Spata, German"]
[WhiteFideId "3503364"]
[BlackFideId "113026"]
[WhiteElo "2329"]
[BlackElo "2383"]
[Result "1-0"]
[Round "05"]
[TimeControl "180+2"]
[Date "2023.01.10"]
[WhiteClock "0:00:20"]
[BlackClock "0:00:03"]

1. e4 {[%clk 0:02:58]}  e6 {[%clk 0:03:00]} 2. d4 {[%clk 0:02:57]}  d5 {[%clk 0:03:00]} 3. e5 {[%clk 0:02:58]}  b6 {[%clk 0:03:00]} 4. c4 {[%clk 0:02:56]}  Ne7 {[%clk 0:02:59]} 5. Nc3 {[%clk 0:02:52]}  Qd7 {[%clk 0:02:59]} 6. cxd5 {[%clk 0:02:46]}  Nxd5 {[%clk 0:03:00]} 7. Nf3 {[%clk 0:02:45]}  Be7 {[%clk 0:02:56]} 8. Bd3 {[%clk 0:02:39]}  Nxc3 {[%clk 0:02:45]} 9. bxc3 {[%clk 0:02:38]}  Ba6 {[%clk 0:02:45]} 10. Bxa6 {[%clk 0:02:28]}  Nxa6 {[%clk 0:02:44]} 11. O-O {[%clk 0:02:29]}  c5 {[%clk 0:02:38]} 12. a4 {[%clk 0:02:21]}  cxd4 {[%clk 0:02:35]} 13. cxd4 {[%clk 0:02:19]}  Nb4 {[%clk 0:02:30]} 14. a5 {[%clk 0:02:19]}  O-O {[%clk 0:02:23]} 15. Bg5 {[%clk 0:02:08]}  Nd5 {[%clk 0:02:06]} 16. axb6 {[%clk 0:01:45]}  axb6 {[%clk 0:02:04]} 17. Rxa8 {[%clk 0:01:46]}  Rxa8 {[%clk 0:02:03]} 18. h4 {[%clk 0:01:38]}  h6 {[%clk 0:02:02]} 19. Bxe7 {[%clk 0:01:37]}  Qxe7 {[%clk 0:02:03]} 20. Qb3 {[%clk 0:01:30]}  Ra3 {[%clk 0:01:57]} 21. Qb5 {[%clk 0:01:27]}  Ra5 {[%clk 0:01:50]} 22. Qc6 {[%clk 0:01:25]}  Qd8 {[%clk 0:01:40]} 23. Rc1 {[%clk 0:01:23]}  Ra8 {[%clk 0:01:40]} 24. h5 {[%clk 0:01:20]}  Rb8 {[%clk 0:01:37]} 25. Qb5 {[%clk 0:01:10]}  Qe8 {[%clk 0:01:32]} 26. Qb3 {[%clk 0:00:58]}  Rc8 {[%clk 0:01:26]} 27. Ra1 {[%clk 0:00:53]}  Qc6 {[%clk 0:01:24]} 28. Nd2 {[%clk 0:00:48]}  b5 {[%clk 0:01:23]} 29. Ne4 {[%clk 0:00:47]}  Nf4 {[%clk 0:01:04]} 30. Qf3 {[%clk 0:00:46]}  Nd5 {[%clk 0:00:49]} 31. Nd6 {[%clk 0:00:39]}  Rf8 {[%clk 0:00:45]} 32. Ra7 {[%clk 0:00:39]}  Qc1+ {[%clk 0:00:38]} 33. Kh2 {[%clk 0:00:39]}  Qf4+ {[%clk 0:00:34]} 34. Qxf4 {[%clk 0:00:38]}  Nxf4 {[%clk 0:00:35]} 35. Nxb5 {[%clk 0:00:33]}  Nxh5 {[%clk 0:00:34]} 36. g3 {[%clk 0:00:33]}  g6 {[%clk 0:00:27]} 37. Nd6 {[%clk 0:00:31]}  Ng7 {[%clk 0:00:27]} 38. Ne4 {[%clk 0:00:31]}  Nf5 {[%clk 0:00:24]} 39. Rd7 {[%clk 0:00:32]}  Kg7 {[%clk 0:00:24]} 40. g4 {[%clk 0:00:31]}  Nh4 {[%clk 0:00:21]} 41. Kg3 {[%clk 0:00:31]}  g5 {[%clk 0:00:22]} 42. f4 {[%clk 0:00:31]}  Kg6 {[%clk 0:00:13]} 43. d5 {[%clk 0:00:31]}  exd5 {[%clk 0:00:13]} 44. Rd6+ {[%clk 0:00:26]}  Kg7 {[%clk 0:00:12]} 45. Rxd5 {[%clk 0:00:24]}  Ra8 {[%clk 0:00:09]} 46. fxg5 {[%clk 0:00:24]}  hxg5 {[%clk 0:00:09]} 47. Nxg5 {[%clk 0:00:24]}  Ng6 {[%clk 0:00:09]} 48. e6 {[%clk 0:00:23]}  fxe6 {[%clk 0:00:08]} 49. Nxe6+ {[%clk 0:00:22]}  Kf6 {[%clk 0:00:09]} 50. Nd4 {[%clk 0:00:22]}  Ra3+ {[%clk 0:00:09]} 51. Nf3 {[%clk 0:00:22]}  Ke6 {[%clk 0:00:05]} 52. Rb5 {[%clk 0:00:21]}  Kf6 {[%clk 0:00:04]} 53. g5+ {[%clk 0:00:21]}  Kf7 {[%clk 0:00:03]} 54. Kg4 {[%clk 0:00:22]}  Ra4+ {[%clk 0:00:03]} 55. Kg3 {[%clk 0:00:21]}  Ra3 {[%clk 0:00:03]} 56. Rb7+ {[%clk 0:00:21]}  Ke6 {[%clk 0:00:04]} 57. Rb6+ {[%clk 0:00:22]}  Kf5 {[%clk 0:00:04]} 58. Rf6+ {[%clk 0:00:23]}  Ke4 {[%clk 0:00:04]} 59. Kg4 {[%clk 0:00:22]}  Rxf3 {[%clk 0:00:03]} 60. Rxg6 {[%clk 0:00:21]}  Rf1 {[%clk 0:00:03]} 61. Re6+ {[%clk 0:00:21]}  Kd5 {[%clk 0:00:04]} 62. Re8 {[%clk 0:00:21]}  Kd6 {[%clk 0:00:04]} 63. Re2 {[%clk 0:00:20]}  Kd7 {[%clk 0:00:03]} 64. g6 {[%clk 0:00:20]} 1-0


[Site "https://www.chess.com"]

[Event "Titled Tuesday Blitz January 10 Early 2023"]
[White "Osinovsky, Stepan"]
[Black "Royal, Shreyas"]
[WhiteFideId "4157354"]
[BlackFideId "448869"]
[WhiteElo "2241"]
[BlackElo "2438"]
[Result "0-1"]
[Round "05"]
[TimeControl "180+2"]
[Date "2023.01.10"]
[WhiteClock "0:00:02"]
[BlackClock "0:01:26"]

1. Nf3 {[%clk 0:02:56]}  g6 {[%clk 0:02:56]} 2. g3 {[%clk 0:02:51]}  Bg7 {[%clk 0:02:57]} 3. Bg2 {[%clk 0:02:52]}  d5 {[%clk 0:02:56]} 4. O-O {[%clk 0:02:53]}  e5 {[%clk 0:02:56]} 5. d3 {[%clk 0:02:54]}  Nc6 {[%clk 0:02:56]} 6. Nbd2 {[%clk 0:02:54]}  Nge7 {[%clk 0:02:56]} 7. e4 {[%clk 0:02:55]}  O-O {[%clk 0:02:56]} 8. Re1 {[%clk 0:02:54]}  h6 {[%clk 0:02:54]} 9. c3 {[%clk 0:02:53]}  Be6 {[%clk 0:02:52]} 10. a4 {[%clk 0:02:52]}  Qd7 {[%clk 0:02:51]} 11. a5 {[%clk 0:02:51]}  Rad8 {[%clk 0:02:51]} 12. Qa4 {[%clk 0:02:50]}  f5 {[%clk 0:02:45]} 13. exd5 {[%clk 0:02:12]}  Bxd5 {[%clk 0:02:39]} 14. a6 {[%clk 0:01:56]}  b6 {[%clk 0:02:34]} 15. Nc4 {[%clk 0:01:53]}  b5 {[%clk 0:02:27]} 16. Qxb5 {[%clk 0:01:48]}  Bxf3 {[%clk 0:02:27]} 17. Bxf3 {[%clk 0:00:37]}  Nd4 {[%clk 0:02:26]} 18. Qb7 {[%clk 0:00:32]}  Rb8 {[%clk 0:02:22]} 19. cxd4 {[%clk 0:00:31]}  Rxb7 {[%clk 0:02:21]} 20. axb7 {[%clk 0:00:31]}  e4 {[%clk 0:02:14]} 21. dxe4 {[%clk 0:00:30]}  Qxd4 {[%clk 0:02:15]} 22. Ra4 {[%clk 0:00:24]}  fxe4 {[%clk 0:02:14]} 23. Rxe4 {[%clk 0:00:22]}  Qd7 {[%clk 0:02:13]} 24. Kg2 {[%clk 0:00:20]}  Qxa4 {[%clk 0:02:12]} 25. Rxe7 {[%clk 0:00:19]}  Qxc4 {[%clk 0:02:11]} 26. Bf4 {[%clk 0:00:18]}  g5 {[%clk 0:02:07]} 27. Rxc7 {[%clk 0:00:18]}  Qb3 {[%clk 0:02:04]} 28. Rd7 {[%clk 0:00:17]}  Qxb2 {[%clk 0:01:56]} 29. Bd5+ {[%clk 0:00:16]}  Kh8 {[%clk 0:01:52]} 30. Be3 {[%clk 0:00:15]}  Bd4 {[%clk 0:01:47]} 31. Rf7 {[%clk 0:00:07]}  Rb8 {[%clk 0:01:39]} 32. Bxd4+ {[%clk 0:00:02]}  Qxd4 {[%clk 0:01:40]} 33. Bf3 {[%clk 0:00:02]}  a5 {[%clk 0:01:38]} 34. Rc7 {[%clk 0:00:02]}  Qd8 {[%clk 0:01:37]} 35. Rc5 {[%clk 0:00:01]}  Qb6 {[%clk 0:01:36]} 36. Rc6 {[%clk 0:00:01]}  Qxb7 {[%clk 0:01:26]} 37. Rxh6+ {[%clk 0:00:02]}  Kg7 {[%clk 0:01:26]} 0-1


[Site "https://www.chess.com"]

[Event "Titled Tuesday Blitz January 10 Early 2023"]
[White "Legenia, Artem"]
[Black "Manelyuk, Daniil"]
[WhiteFideId "14136945"]
[BlackFideId "44173920"]
[WhiteElo "2092"]
[BlackElo "2302"]
[Result "0-1"]
[Round "05"]
[TimeControl "180+2"]
[Date "2023.01.10"]
[WhiteClock "0:00:12"]
[BlackClock "0:00:31"]

1. Nf3 {[%clk 0:02:57]}  d5 {[%clk 0:02:57]} 2. c4 {[%clk 0:02:57]}  dxc4 {[%clk 0:02:53]} 3. e3 {[%clk 0:02:55]}  g6 {[%clk 0:02:53]} 4. Nc3 {[%clk 0:02:55]}  Bg7 {[%clk 0:02:53]} 5. Bxc4 {[%clk 0:02:55]}  Nf6 {[%clk 0:02:53]} 6. d4 {[%clk 0:02:55]}  O-O {[%clk 0:02:53]} 7. h3 {[%clk 0:02:55]}  b6 {[%clk 0:02:53]} 8. O-O {[%clk 0:02:54]}  Bb7 {[%clk 0:02:54]} 9. Bd3 {[%clk 0:02:43]}  Nbd7 {[%clk 0:02:53]} 10. a3 {[%clk 0:02:43]}  c5 {[%clk 0:02:52]} 11. b4 {[%clk 0:02:29]}  cxd4 {[%clk 0:02:49]} 12. exd4 {[%clk 0:02:29]}  Rc8 {[%clk 0:02:48]} 13. Bb2 {[%clk 0:02:29]}  Nd5 {[%clk 0:02:48]} 14. Rc1 {[%clk 0:02:26]}  Nxc3 {[%clk 0:02:47]} 15. Bxc3 {[%clk 0:02:25]}  Nf6 {[%clk 0:02:47]} 16. Ne5 {[%clk 0:02:22]}  Nd5 {[%clk 0:02:35]} 17. Bd2 {[%clk 0:02:18]}  e6 {[%clk 0:02:31]} 18. Re1 {[%clk 0:02:16]}  Rxc1 {[%clk 0:02:23]} 19. Qxc1 {[%clk 0:02:15]}  Qa8 {[%clk 0:02:20]} 20. Be4 {[%clk 0:02:09]}  Rc8 {[%clk 0:02:17]} 21. Qb1 {[%clk 0:02:04]}  Nf6 {[%clk 0:02:09]} 22. Bxb7 {[%clk 0:02:03]}  Qxb7 {[%clk 0:02:10]} 23. Rc1 {[%clk 0:02:02]}  Nd7 {[%clk 0:02:09]} 24. Bf4 {[%clk 0:01:57]}  h6 {[%clk 0:01:59]} 25. Rxc8+ {[%clk 0:01:53]}  Qxc8 {[%clk 0:02:00]} 26. Nxd7 {[%clk 0:01:53]}  Qxd7 {[%clk 0:01:59]} 27. Qe4 {[%clk 0:01:53]}  Qxd4 {[%clk 0:01:57]} 28. Qa8+ {[%clk 0:01:51]}  Kh7 {[%clk 0:01:55]} 29. Bb8 {[%clk 0:01:35]}  b5 {[%clk 0:01:00]} 30. Qxa7 {[%clk 0:01:33]}  Qxa7 {[%clk 0:00:58]} 31. Bxa7 {[%clk 0:01:33]}  Bb2 {[%clk 0:00:59]} 32. Kf1 {[%clk 0:01:19]}  Kg7 {[%clk 0:00:59]} 33. Ke2 {[%clk 0:01:19]}  Kf6 {[%clk 0:00:57]} 34. Kd3 {[%clk 0:01:19]}  Ke5 {[%clk 0:00:57]} 35. Bc5 {[%clk 0:01:12]}  Kd5 {[%clk 0:00:54]} 36. f3 {[%clk 0:01:07]}  h5 {[%clk 0:00:53]} 37. Be7 {[%clk 0:00:48]}  Bxa3 {[%clk 0:00:50]} 38. Bf8 {[%clk 0:00:37]}  Bb2 {[%clk 0:00:47]} 39. Bc5 {[%clk 0:00:36]}  Bg7 {[%clk 0:00:45]} 40. g4 {[%clk 0:00:34]}  hxg4 {[%clk 0:00:45]} 41. hxg4 {[%clk 0:00:34]}  f5 {[%clk 0:00:45]} 42. gxf5 {[%clk 0:00:34]}  gxf5 {[%clk 0:00:46]} 43. Be7 {[%clk 0:00:33]}  e5 {[%clk 0:00:39]} 44. Bc5 {[%clk 0:00:32]}  e4+ {[%clk 0:00:37]} 45. fxe4+ {[%clk 0:00:32]}  fxe4+ {[%clk 0:00:38]} 46. Ke3 {[%clk 0:00:29]}  Bh6+ {[%clk 0:00:37]} 47. Ke2 {[%clk 0:00:29]}  Kc4 {[%clk 0:00:37]} 48. Be7 {[%clk 0:00:28]}  Bc1 {[%clk 0:00:34]} 49. Bf8 {[%clk 0:00:27]}  Ba3 {[%clk 0:00:32]} 50. Ke3 {[%clk 0:00:25]}  Bxb4 {[%clk 0:00:31]} 51. Bg7 {[%clk 0:00:22]}  Kd5 {[%clk 0:00:31]} 52. Bb2 {[%clk 0:00:21]}  Bc5+ {[%clk 0:00:31]} 53. Ke2 {[%clk 0:00:21]}  Bd4 {[%clk 0:00:32]} 54. Ba3 {[%clk 0:00:21]}  Bc3 {[%clk 0:00:32]} 55. Bf8 {[%clk 0:00:17]}  b4 {[%clk 0:00:32]} 56. Kd1 {[%clk 0:00:17]}  b3 {[%clk 0:00:31]} 57. Ba3 {[%clk 0:00:13]}  Kc4 {[%clk 0:00:26]} 58. Ke2 {[%clk 0:00:13]}  b2 {[%clk 0:00:24]} 59. Bxb2 {[%clk 0:00:10]}  Bxb2 {[%clk 0:00:25]} 60. Ke3 {[%clk 0:00:10]}  Kd5 {[%clk 0:00:26]} 61. Ke2 {[%clk 0:00:10]}  Ke5 {[%clk 0:00:27]} 62. Kd1 {[%clk 0:00:10]}  Kf4 {[%clk 0:00:28]} 63. Ke2 {[%clk 0:00:11]}  e3 {[%clk 0:00:29]} 64. Kd1 {[%clk 0:00:12]}  Kf3 {[%clk 0:00:30]} 65. Ke1 {[%clk 0:00:12]}  e2 {[%clk 0:00:31]} 66. Kd2 {[%clk 0:00:12]}  Bc3+ {[%clk 0:00:31]} 0-1


[Site "https://www.chess.com"]

[Event "Titled Tuesday Blitz January 10 Early 2023"]
[White "Girsh, Daniel"]
[Black "Arngrimsson, Dagur"]
[WhiteFideId "30949190"]
[BlackFideId "2301288"]
[WhiteElo "2123"]
[BlackElo "2370"]
[Result "1-0"]
[Round "05"]
[TimeControl "180+2"]
[Date "2023.01.10"]
[WhiteClock "0:00:49"]
[BlackClock "0:00:12"]

1. d4 {[%clk 0:03:00]}  d5 {[%clk 0:02:59]} 2. c4 {[%clk 0:02:52]}  c6 {[%clk 0:02:57]} 3. Nf3 {[%clk 0:02:51]}  Nf6 {[%clk 0:02:57]} 4. Qb3 {[%clk 0:02:51]}  dxc4 {[%clk 0:02:56]} 5. Qxc4 {[%clk 0:02:47]}  g6 {[%clk 0:02:52]} 6. g3 {[%clk 0:02:47]}  Bg7 {[%clk 0:02:52]} 7. Bg2 {[%clk 0:02:48]}  O-O {[%clk 0:02:52]} 8. O-O {[%clk 0:02:48]}  b5 {[%clk 0:02:51]} 9. Qb3 {[%clk 0:02:43]}  Be6 {[%clk 0:02:45]} 10. Qc2 {[%clk 0:02:42]}  Bf5 {[%clk 0:02:45]} 11. Qb3 {[%clk 0:02:41]}  Nbd7 {[%clk 0:02:42]} 12. Nc3 {[%clk 0:02:41]}  a5 {[%clk 0:02:28]} 13. Ne5 {[%clk 0:02:33]}  Nxe5 {[%clk 0:02:24]} 14. dxe5 {[%clk 0:02:32]}  Be6 {[%clk 0:02:08]} 15. Qc2 {[%clk 0:02:29]}  Nd7 {[%clk 0:01:43]} 16. Bxc6 {[%clk 0:02:27]}  Rc8 {[%clk 0:01:33]} 17. Bxb5 {[%clk 0:02:25]}  Nxe5 {[%clk 0:01:31]} 18. Bf4 {[%clk 0:02:22]}  Qb6 {[%clk 0:01:24]} 19. a4 {[%clk 0:02:16]}  Bh3 {[%clk 0:01:17]} 20. Be3 {[%clk 0:02:13]}  Qb7 {[%clk 0:01:16]} 21. Qe4 {[%clk 0:02:04]}  Qxe4 {[%clk 0:01:14]} 22. Nxe4 {[%clk 0:02:05]}  Bxf1 {[%clk 0:01:13]} 23. Kxf1 {[%clk 0:02:04]}  Nc4 {[%clk 0:01:14]} 24. Bg5 {[%clk 0:01:58]}  Bxb2 {[%clk 0:01:11]} 25. Rd1 {[%clk 0:01:50]}  Rfd8 {[%clk 0:01:08]} 26. Rxd8+ {[%clk 0:01:47]}  Rxd8 {[%clk 0:01:07]} 27. Bxc4 {[%clk 0:01:48]}  Rd4 {[%clk 0:01:02]} 28. Bd3 {[%clk 0:01:33]}  f6 {[%clk 0:01:00]} 29. Bd2 {[%clk 0:01:29]}  Rxa4 {[%clk 0:00:59]} 30. Nc5 {[%clk 0:01:23]}  Ra1+ {[%clk 0:00:53]} 31. Kg2 {[%clk 0:01:23]}  a4 {[%clk 0:00:43]} 32. Bc4+ {[%clk 0:01:13]}  Kh8 {[%clk 0:00:43]} 33. Bb4 {[%clk 0:01:07]}  Ba3 {[%clk 0:00:35]} 34. Bxa3 {[%clk 0:01:03]}  Rxa3 {[%clk 0:00:36]} 35. Bb5 {[%clk 0:01:03]}  Rc3 {[%clk 0:00:16]} 36. Nxa4 {[%clk 0:01:03]}  Rb3 {[%clk 0:00:16]} 37. Bd3 {[%clk 0:01:02]}  Kg7 {[%clk 0:00:16]} 38. Nc5 {[%clk 0:01:02]}  Rb6 {[%clk 0:00:16]} 39. Kf3 {[%clk 0:00:58]}  e5 {[%clk 0:00:16]} 40. Ke3 {[%clk 0:00:56]}  f5 {[%clk 0:00:16]} 41. f4 {[%clk 0:00:56]}  exf4+ {[%clk 0:00:02]} 42. gxf4 {[%clk 0:00:55]}  Rc6 {[%clk 0:00:02]} 43. Kd4 {[%clk 0:00:54]}  Rd6+ {[%clk 0:00:02]} 44. Ke5 {[%clk 0:00:53]}  Rd8 {[%clk 0:00:03]} 45. Ne6+ {[%clk 0:00:53]}  Kh6 {[%clk 0:00:04]} 46. Nxd8 {[%clk 0:00:54]}  g5 {[%clk 0:00:04]} 47. e3 {[%clk 0:00:54]}  gxf4 {[%clk 0:00:04]} 48. exf4 {[%clk 0:00:53]}  Kh5 {[%clk 0:00:05]} 49. Bxf5 {[%clk 0:00:52]}  Kh4 {[%clk 0:00:06]} 50. Ne6 {[%clk 0:00:51]}  Kh5 {[%clk 0:00:05]} 51. Bxh7 {[%clk 0:00:51]}  Kh4 {[%clk 0:00:06]} 52. Bf5 {[%clk 0:00:51]}  Kh5 {[%clk 0:00:06]} 53. Kf6 {[%clk 0:00:51]}  Kh4 {[%clk 0:00:07]} 54. Ng5 {[%clk 0:00:51]}  Kh5 {[%clk 0:00:08]} 55. Kg7 {[%clk 0:00:49]}  Kh4 {[%clk 0:00:07]} 56. Bg6 {[%clk 0:00:49]}  Kg4 {[%clk 0:00:07]} 57. f5 {[%clk 0:00:49]}  Kxg5 {[%clk 0:00:08]} 58. f6 {[%clk 0:00:50]}  Kh4 {[%clk 0:00:09]} 59. f7 {[%clk 0:00:51]}  Kh3 {[%clk 0:00:10]} 60. f8=Q {[%clk 0:00:52]}  Kxh2 {[%clk 0:00:10]} 61. Qa3 {[%clk 0:00:50]}  Kg2 {[%clk 0:00:10]} 62. Qe3 {[%clk 0:00:50]}  Kf1 {[%clk 0:00:10]} 63. Qd2 {[%clk 0:00:49]}  Kg1 {[%clk 0:00:10]} 64. Be4 {[%clk 0:00:50]}  Kf1 {[%clk 0:00:11]} 65. Bf3 {[%clk 0:00:49]}  Kg1 {[%clk 0:00:12]} 66. Qg2# {[%clk 0:00:49]} 1-0


[Site "https://www.chess.com"]

[Event "Titled Tuesday Blitz January 10 Early 2023"]
[White "Shubenkova, Veronika"]
[Black "Golubev, Mikhail"]
[WhiteFideId "44124040"]
[BlackFideId "14100983"]
[WhiteElo "1960"]
[BlackElo "2461"]
[Result "1/2-1/2"]
[Round "05"]
[TimeControl "180+2"]
[Date "2023.01.10"]
[WhiteClock "0:00:17"]
[BlackClock "0:00:03"]

1. e4 {[%clk 0:03:00]}  c5 {[%clk 0:02:56]} 2. Nc3 {[%clk 0:03:00]}  Nc6 {[%clk 0:02:54]} 3. g3 {[%clk 0:03:00]}  g6 {[%clk 0:02:53]} 4. Bg2 {[%clk 0:03:00]}  Bg7 {[%clk 0:02:54]} 5. d3 {[%clk 0:03:01]}  e6 {[%clk 0:02:53]} 6. f4 {[%clk 0:03:01]}  Nge7 {[%clk 0:02:48]} 7. Nf3 {[%clk 0:03:00]}  d5 {[%clk 0:02:44]} 8. O-O {[%clk 0:02:58]}  O-O {[%clk 0:02:43]} 9. Rb1 {[%clk 0:02:57]}  Nd4 {[%clk 0:02:40]} 10. Ne2 {[%clk 0:02:46]}  dxe4 {[%clk 0:02:24]} 11. dxe4 {[%clk 0:02:45]}  b6 {[%clk 0:02:24]} 12. c3 {[%clk 0:02:42]}  Nxf3+ {[%clk 0:02:11]} 13. Bxf3 {[%clk 0:02:41]}  Qxd1 {[%clk 0:02:01]} 14. Rxd1 {[%clk 0:02:40]}  e5 {[%clk 0:02:00]} 15. Be3 {[%clk 0:02:38]}  Be6 {[%clk 0:01:45]} 16. a3 {[%clk 0:02:28]}  Rad8 {[%clk 0:01:35]} 17. Kf2 {[%clk 0:02:18]}  Bb3 {[%clk 0:01:14]} 18. Rxd8 {[%clk 0:02:17]}  Rxd8 {[%clk 0:01:15]} 19. Re1 {[%clk 0:02:13]}  Nc6 {[%clk 0:01:07]} 20. Nc1 {[%clk 0:02:11]}  Bc4 {[%clk 0:01:00]} 21. Rd1 {[%clk 0:02:08]}  Re8 {[%clk 0:00:47]} 22. b3 {[%clk 0:02:02]}  Ba6 {[%clk 0:00:40]} 23. c4 {[%clk 0:01:57]}  exf4 {[%clk 0:00:37]} 24. gxf4 {[%clk 0:01:53]}  Bb2 {[%clk 0:00:25]} 25. Ne2 {[%clk 0:01:47]}  Na5 {[%clk 0:00:20]} 26. Rb1 {[%clk 0:01:42]}  Bxa3 {[%clk 0:00:18]} 27. e5 {[%clk 0:01:40]}  Bb4 {[%clk 0:00:13]} 28. Ng3 {[%clk 0:01:30]}  Bb7 {[%clk 0:00:11]} 29. Bxb7 {[%clk 0:01:26]}  Nxb7 {[%clk 0:00:11]} 30. Ne4 {[%clk 0:01:26]}  Rd8 {[%clk 0:00:10]} 31. Nf6+ {[%clk 0:01:26]}  Kg7 {[%clk 0:00:09]} 32. Nd5 {[%clk 0:01:26]}  Ba5 {[%clk 0:00:08]} 33. Bc1 {[%clk 0:01:22]}  Re8 {[%clk 0:00:06]} 34. Bb2 {[%clk 0:01:21]}  Kh6 {[%clk 0:00:06]} 35. Kf3 {[%clk 0:01:20]}  Nd8 {[%clk 0:00:05]} 36. Nf6 {[%clk 0:01:18]}  Re6 {[%clk 0:00:04]} 37. Rd1 {[%clk 0:01:18]}  Nc6 {[%clk 0:00:04]} 38. Rd7 {[%clk 0:01:09]}  Kg7 {[%clk 0:00:04]} 39. Ne4 {[%clk 0:01:02]}  Nd4+ {[%clk 0:00:03]} 40. Bxd4 {[%clk 0:01:02]}  cxd4 {[%clk 0:00:03]} 41. Rxd4 {[%clk 0:01:03]}  Bb4 {[%clk 0:00:03]} 42. Rd7 {[%clk 0:01:02]}  Re7 {[%clk 0:00:03]} 43. Rd5 {[%clk 0:01:01]}  a5 {[%clk 0:00:02]} 44. Rb5 {[%clk 0:00:58]}  Rb7 {[%clk 0:00:01]} 45. Ng3 {[%clk 0:00:54]}  Kf8 {[%clk 0:00:01]} 46. h4 {[%clk 0:00:53]}  Ke7 {[%clk 0:00:01]} 47. h5 {[%clk 0:00:53]}  Kd7 {[%clk 0:00:01]} 48. hxg6 {[%clk 0:00:53]}  hxg6 {[%clk 0:00:02]} 49. Ke4 {[%clk 0:00:52]}  Kc6 {[%clk 0:00:02]} 50. Ne2 {[%clk 0:00:51]}  Rd7 {[%clk 0:00:02]} 51. Nd4+ {[%clk 0:00:51]}  Kc7 {[%clk 0:00:03]} 52. f5 {[%clk 0:00:47]}  gxf5+ {[%clk 0:00:02]} 53. Nxf5 {[%clk 0:00:48]}  Bc5 {[%clk 0:00:02]} 54. Ng3 {[%clk 0:00:39]}  Rd4+ {[%clk 0:00:02]} 55. Kf5 {[%clk 0:00:38]}  Kc6 {[%clk 0:00:03]} 56. Nh5 {[%clk 0:00:37]}  Rd3 {[%clk 0:00:03]} 57. Nf4 {[%clk 0:00:37]}  Rf3 {[%clk 0:00:02]} 58. Ke4 {[%clk 0:00:34]}  Re3+ {[%clk 0:00:02]} 59. Kf5 {[%clk 0:00:33]}  Rf3 {[%clk 0:00:03]} 60. Kg4 {[%clk 0:00:30]}  Rf1 {[%clk 0:00:04]} 61. Nd5 {[%clk 0:00:25]}  Rg1+ {[%clk 0:00:04]} 62. Kf5 {[%clk 0:00:24]}  Rf1+ {[%clk 0:00:04]} 63. Kg5 {[%clk 0:00:24]}  Re1 {[%clk 0:00:04]} 64. Kf6 {[%clk 0:00:24]}  Bd4 {[%clk 0:00:04]} 65. Ne7+ {[%clk 0:00:22]}  Kc7 {[%clk 0:00:05]} 66. Rd5 {[%clk 0:00:21]}  Bc5 {[%clk 0:00:04]} 67. Nf5 {[%clk 0:00:21]}  Rf1 {[%clk 0:00:04]} 68. Rd3 {[%clk 0:00:20]}  Rf2 {[%clk 0:00:04]} 69. Rh3 {[%clk 0:00:20]}  Rf1 {[%clk 0:00:02]} 70. Rh7 {[%clk 0:00:20]}  Kc6 {[%clk 0:00:02]} 71. Rxf7 {[%clk 0:00:21]}  Rf3 {[%clk 0:00:03]} 72. e6 {[%clk 0:00:21]}  Rxb3 {[%clk 0:00:03]} 73. e7 {[%clk 0:00:21]}  Bxe7+ {[%clk 0:00:03]} 74. Nxe7+ {[%clk 0:00:21]}  Kc5 {[%clk 0:00:03]} 75. Nc8 {[%clk 0:00:21]}  Kxc4 {[%clk 0:00:03]} 76. Rc7+ {[%clk 0:00:21]}  Kd3 {[%clk 0:00:03]} 77. Ke5 {[%clk 0:00:21]}  a4 {[%clk 0:00:03]} 78. Ra7 {[%clk 0:00:21]}  a3 {[%clk 0:00:03]} 79. Kd5 {[%clk 0:00:21]}  b5 {[%clk 0:00:03]} 80. Nd6 {[%clk 0:00:20]}  b4 {[%clk 0:00:03]} 81. Ne4 {[%clk 0:00:18]}  Kc2 {[%clk 0:00:03]} 82. Nc5 {[%clk 0:00:18]}  Rc3 {[%clk 0:00:02]} 83. Kd4 {[%clk 0:00:18]}  b3 {[%clk 0:00:02]} 84. Rxa3 {[%clk 0:00:17]}  Rxc5 {[%clk 0:00:02]} 85. Kxc5 {[%clk 0:00:17]}  b2 {[%clk 0:00:02]} 86. Ra2 {[%clk 0:00:17]}  Kc1 {[%clk 0:00:03]} 87. Rxb2 {[%clk 0:00:17]}  Kxb2 {[%clk 0:00:03]} 1/2-1/2


[Site "https://www.chess.com"]

[Event "Titled Tuesday Blitz January 10 Early 2023"]
[White "Mendez Fortes, Eduardo Jesus"]
[Black "Tarasova, Viktoriya"]
[WhiteFideId "3502376"]
[BlackFideId "4175840"]
[WhiteElo "2250"]
[BlackElo "2226"]
[Result "1/2-1/2"]
[Round "05"]
[TimeControl "180+2"]
[Date "2023.01.10"]
[WhiteClock "0:00:32"]
[BlackClock "0:00:08"]

1. e4 {[%clk 0:02:54]}  e5 {[%clk 0:02:54]} 2. Nf3 {[%clk 0:02:53]}  Nc6 {[%clk 0:02:53]} 3. Bb5 {[%clk 0:02:54]}  Nf6 {[%clk 0:02:53]} 4. d3 {[%clk 0:02:52]}  Bc5 {[%clk 0:02:51]} 5. O-O {[%clk 0:02:51]}  Nd4 {[%clk 0:02:51]} 6. Nxd4 {[%clk 0:02:50]}  Bxd4 {[%clk 0:02:52]} 7. c3 {[%clk 0:02:51]}  Bb6 {[%clk 0:02:49]} 8. h3 {[%clk 0:02:51]}  c6 {[%clk 0:02:49]} 9. Ba4 {[%clk 0:02:51]}  O-O {[%clk 0:02:49]} 10. Nd2 {[%clk 0:02:49]}  d5 {[%clk 0:02:49]} 11. Qf3 {[%clk 0:02:49]}  h6 {[%clk 0:02:45]} 12. Re1 {[%clk 0:02:50]}  Bc7 {[%clk 0:02:45]} 13. Nf1 {[%clk 0:02:47]}  b5 {[%clk 0:02:43]} 14. Bb3 {[%clk 0:02:46]}  a5 {[%clk 0:02:43]} 15. a3 {[%clk 0:02:44]}  Be6 {[%clk 0:02:40]} 16. Bc2 {[%clk 0:02:44]}  Re8 {[%clk 0:02:35]} 17. g4 {[%clk 0:02:43]}  Nh7 {[%clk 0:02:33]} 18. Ng3 {[%clk 0:02:42]}  Ng5 {[%clk 0:02:27]} 19. Qg2 {[%clk 0:02:39]}  Qf6 {[%clk 0:02:25]} 20. Nh5 {[%clk 0:02:31]}  Qe7 {[%clk 0:02:20]} 21. h4 {[%clk 0:02:18]}  Nh7 {[%clk 0:02:17]} 22. g5 {[%clk 0:02:18]}  hxg5 {[%clk 0:02:10]} 23. hxg5 {[%clk 0:02:19]}  g6 {[%clk 0:02:11]} 24. Ng3 {[%clk 0:02:13]}  Nxg5 {[%clk 0:02:06]} 25. Nf5 {[%clk 0:02:11]}  Nf3+ {[%clk 0:01:24]} 26. Qxf3 {[%clk 0:02:10]}  gxf5 {[%clk 0:01:25]} 27. exf5 {[%clk 0:02:05]}  Qf6 {[%clk 0:01:23]} 28. Qg4+ {[%clk 0:01:59]}  Kf8 {[%clk 0:01:03]} 29. fxe6 {[%clk 0:01:58]}  Bb6 {[%clk 0:00:55]} 30. Be3 {[%clk 0:01:53]}  Bxe3 {[%clk 0:00:33]} 31. Rxe3 {[%clk 0:01:54]}  Ke7 {[%clk 0:00:34]} 32. exf7 {[%clk 0:01:49]}  Qxf7 {[%clk 0:00:30]} 33. Rxe5+ {[%clk 0:01:46]}  Kd6 {[%clk 0:00:31]} 34. Rxe8 {[%clk 0:01:24]}  Rxe8 {[%clk 0:00:30]} 35. Qg3+ {[%clk 0:01:24]}  Kd7 {[%clk 0:00:28]} 36. Kf1 {[%clk 0:01:22]}  Qh5 {[%clk 0:00:22]} 37. d4 {[%clk 0:01:13]}  Qe2+ {[%clk 0:00:13]} 38. Kg1 {[%clk 0:01:08]}  Qxc2 {[%clk 0:00:13]} 39. Kg2 {[%clk 0:01:02]}  Qh7 {[%clk 0:00:11]} 40. Rh1 {[%clk 0:01:01]}  Qe4+ {[%clk 0:00:10]} 41. Kg1 {[%clk 0:00:56]}  Qe1+ {[%clk 0:00:10]} 42. Kg2 {[%clk 0:00:50]}  Qe4+ {[%clk 0:00:10]} 43. f3 {[%clk 0:00:42]}  Qe2+ {[%clk 0:00:10]} 44. Kg1 {[%clk 0:00:41]}  Qd1+ {[%clk 0:00:09]} 45. Kg2 {[%clk 0:00:40]}  Re2+ {[%clk 0:00:07]} 46. Kh3 {[%clk 0:00:41]}  Qxh1+ {[%clk 0:00:06]} 47. Kg4 {[%clk 0:00:41]}  Qh7 {[%clk 0:00:05]} 48. Qb8 {[%clk 0:00:38]}  Re7 {[%clk 0:00:05]} 49. Qb7+ {[%clk 0:00:36]}  Ke8 {[%clk 0:00:05]} 50. Qxc6+ {[%clk 0:00:35]}  Kf8 {[%clk 0:00:06]} 51. Qc8+ {[%clk 0:00:33]}  Kf7 {[%clk 0:00:06]} 52. Kg3 {[%clk 0:00:32]}  Qg6+ {[%clk 0:00:06]} 53. Kf2 {[%clk 0:00:32]}  Qc2+ {[%clk 0:00:07]} 54. Kg3 {[%clk 0:00:32]}  Qc1 {[%clk 0:00:07]} 55. Qf5+ {[%clk 0:00:31]}  Kg7 {[%clk 0:00:07]} 56. Qg4+ {[%clk 0:00:31]}  Kf7 {[%clk 0:00:07]} 57. Qf5+ {[%clk 0:00:31]}  Ke8 {[%clk 0:00:07]} 58. Qc8+ {[%clk 0:00:31]}  Kf7 {[%clk 0:00:08]} 59. Qf5+ {[%clk 0:00:32]} 1/2-1/2


[Site "https://www.chess.com"]